{"text_format":"1","workbook":"xlsx","n_sheets":2,"sheets":["handboek algemeen","Blad1"],"not_rendered":{"charts":0,"images":0,"macros":0,"external_links":0,"defined_names":2,"comments":0,"pivot_tables":0},"unopened":[],"bounds":{"document_bytes":16777216,"sheet_cells":100000,"rows_first":2000,"rows_last":500,"rows_between":2000,"halvings":0,"cell_chars":16384,"cell_head_chars":4096},"cells_cut":0,"cells_raw":0,"read":"whole","date_system":"1900"}

{"sheet":"handboek algemeen","index":0,"n_rows":148,"n_cols":36,"rows_kept":148,"cut":false,"hidden":false,"merged":[[178,1,178,4],[46,3,46,7],[167,3,167,7],[169,3,169,7],[171,3,171,7],[173,3,173,7],[175,3,175,7],[177,3,177,7],[155,3,155,7],[157,1,157,4],[157,7,157,11],[161,3,161,7],[163,3,163,7],[165,3,165,7],[118,3,118,7],[120,3,120,7],[151,3,151,7],[153,3,153,7],[103,3,103,7],[105,3,105,7],[107,3,107,7],[114,3,114,7],[116,3,116,7],[109,3,109,7],[122,3,122,7],[124,3,124,7],[126,3,126,7],[143,3,143,7],[145,3,145,7],[147,3,147,7],[133,3,133,7],[131,3,131,7],[61,3,61,7],[63,3,63,7],[48,3,48,7],[50,3,50,7],[97,3,97,7],[69,3,69,7],[75,3,75,7],[77,3,77,7],[79,3,79,7],[87,3,87,7],[89,3,89,7],[91,3,91,7],[93,3,93,7],[95,3,95,7],[40,3,40,7],[42,3,42,7],[44,3,44,7],[57,3,57,7],[59,3,59,7],[6,16,6,18],[8,16,8,18],[99,3,99,7],[101,3,101,7],[20,3,20,7],[81,3,81,7],[83,3,83,7],[52,3,52,7],[65,3,65,7],[71,3,71,7],[36,3,36,7],[38,3,38,7],[24,3,24,7],[26,3,26,7],[28,3,28,7],[30,3,30,7],[135,3,135,7],[137,3,137,7],[139,3,139,7],[141,3,141,7],[2,3,2,7],[4,3,4,7],[6,3,6,7],[8,3,8,7],[67,3,67,7],[32,3,32,7],[12,3,12,7],[14,3,14,7],[16,3,16,7],[18,3,18,7],[22,3,22,7],[34,3,34,7]]}
["Handboek modules voor het vmbo BWI",null,null,null,null,null,null,null,null,null,null,null,null,null,null,null,null,null,null,null,null,null,null,null,null,null,null,null,null,null,null,null,"vinyl",null,null,"vinyl"]
[null,null,null,null,null,null,null,null,null,null,null,null,null,null,null,null,null,null,null,null,null,null,null,null,null,null,null,null,null,null,null,null,"schabloon",null,null,"sticker"]
[null,"School",null,null,null,null,null,null,null,null,null,null,null,null,null,null,null,null,null,null,null,null,null,null,null,null,null,null,null,null,null,null,"frostfolie",null,null,"op forex"]
[]
[null,"Contactpersoon"]
[]
[null,"Adres",null,null,null,null,null,null,null,null,null,null,null,null,"nr"]
[]
[null,"Postcode ",null,null,null,null,null,null,null,null,null,null,null,null,"plaats"]
[]
[null,"Algemeen:",null,null,null,null,null,null,null,null,"Materiaal",null,"Zagen/frezen",null,"Montage",null,"\nZelfbouwpakket",null,"Aantal:",null,"Compleet meubel ",null,"Aantal:",null,"kosten totaal "]
[]
[null,"Module 1",null,"Element A - open kast met 2 schragen",null,null,null,null,null,null,218,null,0,null,36,null,{"$f":"K13+M13","v":218},null,0,null,{"$f":"K13+M13+O13","v":254},null,0,null,{"$f":"S13*Q13+W13*U13","v":0}]
[]
[null,null,null,"Element B - deur incl. scharnieren",null,null,null,null,null,null,44,null,0,null,0,null,{"$f":"K15+M15","v":44},null,0,null,{"$f":"K15+M15+O15","v":44},null,0,null,{"$f":"S15*Q15+W15*U15","v":0}]
[]
[null,null,null,"Element C - 1 stuks lade met rails",null,null,null,null,null,null,80,null,0,null,0,null,{"$f":"K17+M17","v":80},null,0,null,{"$f":"K17+M17+O17","v":80},null,0,null,{"$f":"S17*Q17+W17*U17","v":0}]
[]
[null,null,null,"Element D - Werkblad 120 cm",null,null,null,null,null,null,151,null,0,null,0,null,{"$f":"K19+M19","v":151},null,0,null,{"$f":"K19+M19+O19","v":151},null,0,null,{"$f":"S19*Q19+W19*U19","v":0}]
[]
[null,null,null,"Element E - Werkblad 160 cm",null,null,null,null,null,null,199,null,0,null,0,null,{"$f":"K21+M21","v":199},null,0,null,{"$f":"K21+M21+O21","v":199},null,0,null,{"$f":"S21*Q21+W21*U21","v":0}]
[]
[null,null,null,"Totale kosten gekozen samenstelling",null,null,null,null,null,null,null,null,null,null,null,null,null,null,null,null,null,null,null,null,{"$f":"SUM(Y13:Y21)","v":0}]
[]
[null,"Module 2",null,"Mobile  gereedschapskast ",null,null,null,null,null,null,714,null,0,null,254,null,714,null,0,null,{"$f":"K25+M25+O25","v":968},null,0,null,{"$f":"S25*Q25+W25*U25","v":0}]
[]
[null,null,null,"Flightcases accessoires voor Module 2",null,null,null,null,null,null,369,null,0,null,0,null,{"$f":"K27+M27","v":369},null,0,null,{"$f":"K27+M27+O27","v":369},null,0,null,{"$f":"S27*Q27+W27*U27","v":0}]
[]
[null,null,null,"Totale kosten gekozen samenstelling",null,null,null,null,null,null,null,null,null,null,null,null,null,null,null,null,null,null,null,null,{"$f":"SUM(Y25:Y27)","v":0}]
[]
[null,"Module 3",null,"Handgereedschapkist",null,null,null,null,null,null,74,null,57,null,96,null,{"$f":"K31+M31","v":131},null,0,null,{"$f":"K31+M31+O31","v":227},null,0,null,{"$f":"S31*Q31+W31*U31","v":0}]
[]
[null,"Module 4",null,"Klapschragen",null,null,null,null,null,null,99,null,16,null,24,null,{"$f":"K33+M33","v":115},null,0,null,{"$f":"K33+M33+O33","v":139},null,0,null,{"$f":"S33*Q33+W33*U33","v":0}]
[]
[null,"Module 5",null,"Info zuil",null,null,null,null,null,null,132,null,129,null,149,null,{"$f":"K35+M35","v":261},null,0,null,{"$f":"K35+M35+O35","v":410},null,0,null,{"$f":"S35*Q35+W35*U35","v":0}]
[]
[null,null,null,"Optie met magnetische plaat",null,null,null,null,null,null,574,null,129,null,149,null,{"$f":"K37+M37","v":703},null,0,null,{"$f":"K37+M37+O37","v":852},null,0,null,{"$f":"S37*Q37+W37*U37","v":0}]
[]
[null,null,null,"Totale kosten gekozen samenstelling",null,null,null,null,null,null,null,null,null,null,null,null,null,null,null,null,null,null,null,null,{"$f":"SUM(Y35:Y37)","v":0}]
[]
[null,"Module 6",null,"Wisselwand ",null,null,null,null,null,null,990,null,null,null,null,null,{"$f":"K41+M41","v":990},null,0,null,{"$f":"K41+M41+O41","v":990},null,0,null,{"$f":"S41*Q41+W41*U41","v":0}]
[]
[null,"Module 7",null,"Podiumkast ",null,null,null,null,null,null,943,null,442,null,288,null,{"$f":"K43+M43","v":1385},null,0,null,{"$f":"K43+M43+O43","v":1673},null,0,null,{"$f":"S43*Q43+W43*U43","v":0}]
[]
[null,"Module 8",null,"Stamtafel",null,null,null,null,null,null,139,null,47,null,null,null,{"$f":"K45+M45","v":186},null,0,null,{"$f":"K45+M45+O45","v":186},null,0,null,{"$f":"S45*Q45+W45*U45","v":0}]
[]
[null,"Module 9",null,"Stellingkast - 1 deel van 60cm",null,null,null,null,null,null,241,null,null,null,null,null,{"$f":"K47+M47","v":241},null,0,null,241,null,0,null,{"$f":"W47*U47","v":0}]
[]
[null,null,null,"Stellingkast - 1 aanbouwdeel van 60cm",null,null,null,null,null,null,187,null,null,null,null,null,{"$f":"K49+M49","v":187},null,0,null,187,null,0,null,{"$f":"S49*Q49+W49*U49","v":0}]
[]
[null,null,null,"Totale kosten gekozen samenstelling",null,null,null,null,null,null,null,null,null,null,null,null,null,null,null,null,null,null,null,null,{"$f":"SUM(Y47:Y49)","v":0}]
[]
[null,null,null,"Totale kosten gekozen Modules",null,null,null,null,null,null,null,null,null,null,null,null,null,null,null,null,null,null,null,null,{"$f":"Y51+Y45+Y43+Y41+Y39+Y35+Y33+Y31+Y29+Y23","v":0}]
[]
[]
[null,"Specifiek:",null,null,null,null,null,null,null,null,"Materiaal",null,"Zagen/frezen",null,"Uren",null,"Zelf uitvoeren",null,"Aantal:",null,"Laten doen",null,"Aantal:",null,"kosten totaal "]
[]
[null,"Losse elementen",null,"a-",null,null,null,null,null,null,null,null,null,null,null,null,null,null,0,null,null,null,0]
[]
[null,null,null,"b-",null,null,null,null,null,null,null,null,null,null,null,null,null,null,0,null,null,null,0,null,null,null,null,null,null,null,"a-Presentatiewand schilderruimte"]
[]
[null,null,null,"c-",null,null,null,null,null,null,null,null,null,null,null,null,null,null,0,null,null,null,0,null,null,null,null,null,null,null,"b-plakplek"]
[]
[null,null,null,"d-",null,null,null,null,null,null,null,null,null,null,null,null,null,null,6,null,null,null,0,null,null,null,null,null,null,null,"c-reliefpanelen leslokaal"]
[]
[null,null,null,"Totale kosten gekozen elementen",null,null,null,null,null,null,null,null,null,null,null,null,null,null,null,null,null,null,null,null,{"$f":"SUM(Y54:Y64)","v":0},null,null,null,null,null,"d-houten stelling kasten op zolder"]
[]
[null,"Ruimtelijke aanpassing",null,"a- ",null,null,null,null,null,null,null,null,null,null,null,null,null,null,0,null,null,null,0,null,null,null,null,null,null,null,"Totale kosten gekozen elementen"]
[]
[null,null,null,"b",null,null,null,null,null,null,null,null,null,null,null,null,null,null,0,null,null,null,0,null,null,null,null,null,null,null,"a- opslagruimte"]
[]
[null,null,null,"Totale kosten gekozen aanpassingen",null,null,null,null,null,null,null,null,null,null,null,null,null,null,null,null,null,null,null,null,{"$f":"SUM(Y60:Y70)","v":0}]
[]
[null,null,null,null,null,null,null,null,null,null,"m2",null,"prijs per m2",null,"kosten verf",null,"Zelf uitvoeren",null,"uren",null,"Laten doen",null,"uren",null,"kosten totaal "]
[]
[null,"Schilderwerk",null,"Wanden",null,null,null,null,null,null,0,null,4,null,{"$f":"K76*M76","v":0},null,null,null,0,null,{"$f":"W76*45","v":0},null,0,null,{"$f":"U76+O76","v":0}]
[]
[null,null,null,"Deuren",null,null,null,null,null,null,"m2",null,null,null,null,null,null,null,null,null,null,null,null,null,{"$f":"U78+O78","v":0}]
[]
[null,null,null,"Kozijnen",null,null,null,null,null,null,"m1",null,null,null,null,null,null,null,null,null,null,null,null,null,0]
[]
[null,null,null,"Totale uren intern",null,null,null,null,null,null,null,null,null,null,null,null,null,null,{"$f":"SUM(S76:S81)","v":0}]
[]
[null,null,null,"Totale kosten materiaal en uren",null,null,null,null,null,null,null,null,null,null,null,null,null,null,null,null,null,null,null,null,{"$f":"Y80+Y78+Y76","v":0}]
[]
[null,"Grafisch:",null,null,null,null,null,null,null,null,"Materiaal",null,"Afmeting",null,"Aantal:",null,"Kosten",null,"Afmeting",null,"Aantal:",null,"Kosten",null,"kosten totaal "]
[]
[null,"Pictogrammen",null,"Schilderen",null,null,null,null,null,null,"schabloon",null,"40cm diameter",null,0,null,11,null,null,null,0,null,0,null,{"$f":"W88*U88+Q88*O88","v":0}]
[]
[null,null,null,"Metselen",null,null,null,null,null,null,"schabloon",null,"40cm diameter",null,0,null,11,null,null,null,0,null,null,null,{"$f":"W90*U90+Q90*O90","v":0}]
[]
[null,null,null,"Infra",null,null,null,null,null,null,"frostfolie",null,"40cm diameter",null,0,null,12,null,null,null,0,null,null,null,{"$f":"W92*U92+Q92*O92","v":0}]
[]
[null,null,null,"Timmeren",null,null,null,null,null,null,"vinyl",null,null,null,0,null,10,null,null,null,0,null,null,null,{"$f":"W94*U94+Q94*O94","v":0}]
[]
[null,"Wandteksten",null,"a",null,null,null,null,null,null,"vinyl",null,"cm",null,0,null,null,null,null,null,0,null,null,null,{"$f":"W96*U96+Q96*O96","v":0}]
[]
[null,null,null,"b",null,null,null,null,null,null,null,null,null,null,0,null,null,null,null,null,0,null,null,null,{"$f":"W98*U98+Q98*O98","v":0}]
[]
[null,null,null,"c",null,null,null,null,null,null,null,null,null,null,0,null,null,null,null,null,0,null,null,null,{"$f":"W100*U100+Q100*O100","v":0}]
[]
[null,null,null,"d",null,null,null,null,null,null,null,null,null,null,0,null,null,null,null,null,0,null,null,null,{"$f":"W102*U102+Q102*O102","v":0}]
[]
[null,"Tekstblokken",null,"quote",null,null,null,null,null,null,"op forex",null,null,null,0,null,0,null,null,null,0,null,0,null,{"$f":"W104*U104+Q104*O104","v":0}]
[]
[null,"Full colour print",null,null,null,null,null,null,null,null,"op forex",null,"m2",null,0,null,null,null,null,null,0,null,null,null,{"$f":"W106*U106+Q106*O106","v":0}]
[]
[null,"Zwart/wit  print",null,null,null,null,null,null,null,null,"sticker",null,null,null,0,null,null,null,null,null,0,null,null,null,{"$f":"W108*U108+Q108*O108","v":0}]
[]
[null,null,null,"Totale kosten grafisch",null,null,null,null,null,null,null,null,null,null,null,null,null,null,null,null,null,null,null,null,{"$f":"SUM(Y88:Y109)","v":0}]
[]
[]
[null,"Rekenhulp budget",null,null,null,null,null,null,null,null,null,null,null,null,null,null,null,null,null,null,null,null,null,null,"kosten totaal "]
[]
[null,null,null,"totaal beschikbaar budget ",null,null,null,null,null,null,null,null,null,null,null,null,null,null,null,null,null,null,null,null,0]
[]
[null,null,null,"totale kosten gekozen modules",null,null,null,null,null,null,null,null,null,null,null,null,null,null,null,null,null,null,null,null,{"$f":"Y53","v":0}]
[]
[null,null,null,"totale kosten specifieke elementen",null,null,null,null,null,null,null,null,null,null,null,null,null,null,null,null,null,null,null,null,{"$f":"Y66","v":0}]
[]
[null,null,null,"Totale kosten gekozen aanpassingen",null,null,null,null,null,null,null,null,null,null,null,null,null,null,null,null,null,null,null,null,{"$f":"Y72","v":0}]
[]
[null,null,null,"Totale kosten schilderwerk",null,null,null,null,null,null,null,null,null,null,null,null,null,null,null,null,null,null,null,null,{"$f":"Y84","v":0}]
[]
[null,null,null,"Totale kosten grafisch",null,null,null,null,null,null,null,null,null,null,null,null,null,null,null,null,null,null,null,null,{"$f":"Y110","v":0}]
[]
[null,null,null,"saldo",null,null,null,null,null,null,null,null,null,null,null,null,null,null,null,null,null,null,null,null,{"$f":"Y125+Y123+Y121+Y119+Y117+Y115","v":0}]
[]
[]
[null,"Kleuradvies"]
[]
[null,"basis antraciet",null,"Frescolithe 6525",null,null,null,null,null,null,null,null,null,null,null,null,null,null,null,null,null,null,null,null,"Grijs"]
[]
[null,"licht grijs",null,"Frescolithe 6524",null,null,null,null,null,null,null,null,null,null,null,null,null,null,null,null,null,null,null,null,"Licht grijs"]
[]
[null,"Kleur accenten"]
[]
[null,null,null,"Frescolithe 6392",null,null,null,null,null,null,null,null,null,null,null,null,null,null,null,null,null,null,null,null,"Groen"]
[]
[null,null,null,"Frescolithe 6314",null,null,null,null,null,null,null,null,null,null,null,null,null,null,null,null,null,null,null,null,"Turquois"]
[]
[null,null,null,"Frescolithe 6736",null,null,null,null,null,null,null,null,null,null,null,null,null,null,null,null,null,null,null,null,"Lila"]
[]
[null,null,null,"Frescolithe 6134",null,null,null,null,null,null,null,null,null,null,null,null,null,null,null,null,null,null,null,null,"Rood"]
[]
[null,null,null,"Frescolithe 6226",null,null,null,null,null,null,null,null,null,null,null,null,null,null,null,null,null,null,null,null,"Paars"]
[]
[null,null,null,"Frescolithe 6226",null,null,null,null,null,null,null,null,null,null,null,null,null,null,null,null,null,null,null,null,"Blauw"]

{"sheet":"Blad1","index":1,"n_rows":0,"n_cols":0,"rows_kept":0,"cut":false,"hidden":false,"merged":[]}